{"text_format":"1","workbook":"xlsx","n_sheets":2,"sheets":["liste","TCD"],"not_rendered":{"charts":0,"images":0,"macros":1,"external_links":0,"defined_names":3,"comments":0,"pivot_tables":1},"unopened":[],"bounds":{"document_bytes":16777216,"sheet_cells":100000,"rows_first":2000,"rows_last":500,"rows_between":2000,"halvings":0,"cell_chars":16384,"cell_head_chars":4096},"cells_cut":0,"cells_raw":0,"read":"whole","date_system":"1900"}

{"sheet":"liste","index":0,"n_rows":266,"n_cols":5,"rows_kept":266,"cut":false,"hidden":false,"merged":[]}
[null,null,"noms","entraineur","numeros"]
[null,null,"BEAUTE DE BAILLY","B.BOURGOIN",{"$f":"ROWS($1:1)","v":1}]
[null,null,"BRASIL DE BAILLY","B.BOURGOIN",{"$f":"ROWS($1:2)","v":2}]
[null,null,"BRUTUS DE BAILLY","B.BOURGOIN",{"$f":"ROWS($1:3)","v":3}]
[null,null,"DIEGO BAROSSO ","B.BOURGOIN",{"$f":"ROWS($1:4)","v":4}]
[null,null,"DORIS DE BAILLY","B.BOURGOIN",{"$f":"ROWS($1:5)","v":5}]
[null,null,"ECUME DES LOUANGES","B.BOURGOIN",{"$f":"ROWS($1:6)","v":6}]
[null,null,"EJAG","B.BOURGOIN",{"$f":"ROWS($1:7)","v":7}]
[null,null,"ELISIONE MAG","B.BOURGOIN",{"$f":"ROWS($1:8)","v":8}]
[null,null,"EPILOBE DE BAILLY","B.BOURGOIN",{"$f":"ROWS($1:9)","v":9}]
[null,null,"ESTILIANO","B.BOURGOIN",{"$f":"ROWS($1:10)","v":10}]
[null,null,"VAGABONDU MAG","B.BOURGOIN",{"$f":"ROWS($1:11)","v":11}]
[null,null,"VENUS DE BAILLY","B.BOURGOIN",{"$f":"ROWS($1:12)","v":12}]
[null,null,"VIC BOISNANT","B.BOURGOIN",{"$f":"ROWS($1:13)","v":13}]
[null,null,"VITESSE DU VAL","B.BOURGOIN",{"$f":"ROWS($1:14)","v":14}]
[null,null,"AFGHAN BARBES","C,BIGEON",{"$f":"ROWS($1:15)","v":15}]
[null,null,"ALPHA BARBES","C,BIGEON",{"$f":"ROWS($1:16)","v":16}]
[null,null,"AUCH","C,BIGEON",{"$f":"ROWS($1:17)","v":17}]
[null,null,"AUFOR DE MIRE ","C,BIGEON",{"$f":"ROWS($1:18)","v":18}]
[null,null,"BABY HAUFOIOR","C,BIGEON",{"$f":"ROWS($1:19)","v":19}]
[null,null,"BAHIZ DE FLORANGE ","C,BIGEON",{"$f":"ROWS($1:20)","v":20}]
[null,null,"BAULOISE HAUFOR","C,BIGEON",{"$f":"ROWS($1:21)","v":21}]
[null,null,"BE BOP HAUFOR","C,BIGEON",{"$f":"ROWS($1:22)","v":22}]
[null,null,"BEST HAUFOR","C,BIGEON",{"$f":"ROWS($1:23)","v":23}]
[null,null,"BLASON D'ECAJEUL","C,BIGEON",{"$f":"ROWS($1:24)","v":24}]
[null,null,"CACTUS D'YVEL","C,BIGEON",{"$f":"ROWS($1:25)","v":25}]
[null,null,"CARAT D'HAUFOR","C,BIGEON",{"$f":"ROWS($1:26)","v":26}]
[null,null,"CAROLYN BARBES","C,BIGEON",{"$f":"ROWS($1:27)","v":27}]
[null,null,"CASTILLE HAUFOR","C,BIGEON",{"$f":"ROWS($1:28)","v":28}]
[null,null,"CAZAUBON DAIRPET","C,BIGEON",{"$f":"ROWS($1:29)","v":29}]
[null,null,"CHEF DAIRPET","C,BIGEON",{"$f":"ROWS($1:30)","v":30}]
[null,null,"CLASS HAUFOR","C,BIGEON",{"$f":"ROWS($1:31)","v":31}]
[null,null,"CLASSIC HAUFOR","C,BIGEON",{"$f":"ROWS($1:32)","v":32}]
[null,null,"COSTA HAUFOR","C,BIGEON",{"$f":"ROWS($1:33)","v":33}]
[null,null,"DAILY HAUFOR","C,BIGEON",{"$f":"ROWS($1:34)","v":34}]
[null,null,"DANSE D'ETANG","C,BIGEON",{"$f":"ROWS($1:35)","v":35}]
[null,null,"DARLING  HAUFOR","C,BIGEON",{"$f":"ROWS($1:36)","v":36}]
[null,null,"DESTIN D'HAUFOR","C,BIGEON",{"$f":"ROWS($1:37)","v":37}]
[null,null,"DEXTER CHATHO","C,BIGEON",{"$f":"ROWS($1:38)","v":38}]
[null,null,"DIAMANT NONANTAIS","C,BIGEON",{"$f":"ROWS($1:39)","v":39}]
[null,null,"DIAMANTINO","C,BIGEON",{"$f":"ROWS($1:40)","v":40}]
[null,null,"DIANE D'HAUFOR","C,BIGEON",{"$f":"ROWS($1:41)","v":41}]
[null,null,"DORNELLA DE JANZE","C,BIGEON",{"$f":"ROWS($1:42)","v":42}]
[null,null,"DREAM DE FAEL","C,BIGEON",{"$f":"ROWS($1:43)","v":43}]
[null,null,"ESPOIR D'HAUFOR","C,BIGEON",{"$f":"ROWS($1:44)","v":44}]
[null,null,"TEGO D'ETANG","C,BIGEON",{"$f":"ROWS($1:45)","v":45}]
[null,null,"UCCIANI","C,BIGEON",{"$f":"ROWS($1:46)","v":46}]
[null,null,"VASCO FLOWER","C,BIGEON",{"$f":"ROWS($1:47)","v":47}]
[null,null,"AMADEUS DES OBEAUX","D,BEKAERT",{"$f":"ROWS($1:48)","v":48}]
[null,null,"AMSTRIONG JET","D,BEKAERT",{"$f":"ROWS($1:49)","v":49}]
[null,null,"ANZI DES LIARDS","D,BEKAERT",{"$f":"ROWS($1:50)","v":50}]
[null,null,"DIONYS DES LIARDS","D,BEKAERT",{"$f":"ROWS($1:51)","v":51}]
[null,null,"UDINE DU DESERT","D,BEKAERT",{"$f":"ROWS($1:52)","v":52}]
[null,null,"UNDICI","D,BEKAERT",{"$f":"ROWS($1:53)","v":53}]
[null,null,"UROC","D,BEKAERT",{"$f":"ROWS($1:54)","v":54}]
[null,null,"ALPHA SATOR","D,BETHOUART",{"$f":"ROWS($1:55)","v":55}]
[null,null,"BOIG BOSS D\"ARIANE","D,BETHOUART",{"$f":"ROWS($1:56)","v":56}]
[null,null,"BOLERO DU LEVANT","D,BETHOUART",{"$f":"ROWS($1:57)","v":57}]
[null,null,"DIANE DU LEVANT","D,BETHOUART",{"$f":"ROWS($1:58)","v":58}]
[null,null,"VOLGA SATOR","D,BETHOUART",{"$f":"ROWS($1:59)","v":59}]
[null,null,"AUSONE DU KASTEL","E ALLARD",{"$f":"ROWS($1:60)","v":60}]
[null,null,"CHANELLE DU KASTEL","E ALLARD",{"$f":"ROWS($1:61)","v":61}]
[null,null,"CHERRY CADENCE","E ALLARD",{"$f":"ROWS($1:62)","v":62}]
[null,null,"DANSE CADENCE","E ALLARD",{"$f":"ROWS($1:63)","v":63}]
[null,null,"DON WILLIAMS","E ALLARD",{"$f":"ROWS($1:64)","v":64}]
[null,null,"DRIVER CADENCE","E ALLARD",{"$f":"ROWS($1:65)","v":65}]
[null,null,"ELECTRO CADENCE","E ALLARD",{"$f":"ROWS($1:66)","v":66}]
[null,null,"UN NUAGE D'OSMOZ","E ALLARD",{"$f":"ROWS($1:67)","v":67}]
[null,null,"AKIM DU CAP VERT","F,ANNNE",{"$f":"ROWS($1:68)","v":68}]
[null,null,"ALIENOR DE GODREL","F,ANNNE",{"$f":"ROWS($1:69)","v":69}]
[null,null,"BARJAL","F,ANNNE",{"$f":"ROWS($1:70)","v":70}]
[null,null,"BEAU DE GRIMOULT","F,ANNNE",{"$f":"ROWS($1:71)","v":71}]
[null,null,"BELLAYA","F,ANNNE",{"$f":"ROWS($1:72)","v":72}]
[null,null,"BIG KAISER","F,ANNNE",{"$f":"ROWS($1:73)","v":73}]
[null,null,"BORA BUISSONAY","F,ANNNE",{"$f":"ROWS($1:74)","v":74}]
[null,null,"BRIAC DARK","F,ANNNE",{"$f":"ROWS($1:75)","v":75}]
[null,null,"BRINDILLE DE MAI","F,ANNNE",{"$f":"ROWS($1:76)","v":76}]
[null,null,"CAPRICE DE BISSON ","F,ANNNE",{"$f":"ROWS($1:77)","v":77}]
[null,null,"CHAN CE","F,ANNNE",{"$f":"ROWS($1:78)","v":78}]
[null,null,"CHAYANE DE CALVI","F,ANNNE",{"$f":"ROWS($1:79)","v":79}]
[null,null,"CHIPIE GALI","F,ANNNE",{"$f":"ROWS($1:80)","v":80}]
[null,null,"CIRKA JIOSSELYN","F,ANNNE",{"$f":"ROWS($1:81)","v":81}]
[null,null,"CONCERTO DU RUEL ","F,ANNNE",{"$f":"ROWS($1:82)","v":82}]
[null,null,"DAYTONA JET","F,ANNNE",{"$f":"ROWS($1:83)","v":83}]
[null,null,"DEESSE GUERON","F,ANNNE",{"$f":"ROWS($1:84)","v":84}]
[null,null,"ELITE DU MIREL ","F,ANNNE",{"$f":"ROWS($1:85)","v":85}]
[null,null,"ENA DE LAUMAC","F,ANNNE",{"$f":"ROWS($1:86)","v":86}]
[null,null,"ESKO DE REBOMARD","F,ANNNE",{"$f":"ROWS($1:87)","v":87}]
[null,null,"VAISMAN","F,ANNNE",{"$f":"ROWS($1:88)","v":88}]
[null,null,"VERY NICE MUSIC","F,ANNNE",{"$f":"ROWS($1:89)","v":89}]
[null,null,"ASHOKA","J,B BOSSUET",{"$f":"ROWS($1:90)","v":90}]
[null,null,"BEBERT EXPRESS","J,B BOSSUET",{"$f":"ROWS($1:91)","v":91}]
[null,null,"CASTAFIORE ","J,B BOSSUET",{"$f":"ROWS($1:92)","v":92}]
[null,null,"CHANT DES SIRENES","J,B BOSSUET",{"$f":"ROWS($1:93)","v":93}]
[null,null,"DOMINATOR BLOND","J,B BOSSUET",{"$f":"ROWS($1:94)","v":94}]
[null,null,"DRATAR BLOND","J,B BOSSUET",{"$f":"ROWS($1:95)","v":95}]
[null,null,"DROLE DE DAME","J,B BOSSUET",{"$f":"ROWS($1:96)","v":96}]
[null,null,"ALTO DU LYS","J,L,BIGEON",{"$f":"ROWS($1:97)","v":97}]
[null,null,"ANTILLAISE DE MAI ","J,L,BIGEON",{"$f":"ROWS($1:98)","v":98}]
[null,null,"BELLE BAULOISE","J,L,BIGEON",{"$f":"ROWS($1:99)","v":99}]
[null,null,"BISCUIT DLAVERA","J,L,BIGEON",{"$f":"ROWS($1:100)","v":100}]
[null,null,"BOHO PERRINE","J,L,BIGEON",{"$f":"ROWS($1:101)","v":101}]
[null,null,"BRAKA PRIDE","J,L,BIGEON",{"$f":"ROWS($1:102)","v":102}]
[null,null,"BRONCO VINCI ","J,L,BIGEON",{"$f":"ROWS($1:103)","v":103}]
[null,null,"CAGNARD DE BETTON","J,L,BIGEON",{"$f":"ROWS($1:104)","v":104}]
[null,null,"CASTEL BLACK","J,L,BIGEON",{"$f":"ROWS($1:105)","v":105}]
[null,null,"CLOSE TO ME","J,L,BIGEON",{"$f":"ROWS($1:106)","v":106}]
[null,null,"DERBY DU BOURG","J,L,BIGEON",{"$f":"ROWS($1:107)","v":107}]
[null,null,"UNSERT DERPET","J,L,BIGEON",{"$f":"ROWS($1:108)","v":108}]
[null,null,"ALEXIS","J,M BAZIRE",{"$f":"ROWS($1:109)","v":109}]
[null,null,"ALPHEE DE GUEZ","J,M BAZIRE",{"$f":"ROWS($1:110)","v":110}]
[null,null,"ALSONN DE GUEZ ","J,M BAZIRE",{"$f":"ROWS($1:111)","v":111}]
[null,null,"ARMESS DE GUESS","J,M BAZIRE",{"$f":"ROWS($1:112)","v":112}]
[null,null,"ATTILA BERRY","J,M BAZIRE",{"$f":"ROWS($1:113)","v":113}]
[null,null,"AZARO D'EVA","J,M BAZIRE",{"$f":"ROWS($1:114)","v":114}]
[null,null,"BABYLONE SEVEN","J,M BAZIRE",{"$f":"ROWS($1:115)","v":115}]
[null,null,"BARRIO JOSSELYN ","J,M BAZIRE",{"$f":"ROWS($1:116)","v":116}]
[null,null,"BEL AVIS","J,M BAZIRE",{"$f":"ROWS($1:117)","v":117}]
[null,null,"BELIEVE SEVEN ","J,M BAZIRE",{"$f":"ROWS($1:118)","v":118}]
[null,null,"BELINA JOSSELYN","J,M BAZIRE",{"$f":"ROWS($1:119)","v":119}]
[null,null,"BELLE KATIE","J,M BAZIRE",{"$f":"ROWS($1:120)","v":120}]
[null,null,"BERLITZ SEVEN","J,M BAZIRE",{"$f":"ROWS($1:121)","v":121}]
[null,null,"BILFIE DE GUEZ ","J,M BAZIRE",{"$f":"ROWS($1:122)","v":122}]
[null,null,"BIP BIP¨DE GUEZ","J,M BAZIRE",{"$f":"ROWS($1:123)","v":123}]
[null,null,"BIXENTA DU GERS","J,M BAZIRE",{"$f":"ROWS($1:124)","v":124}]
[null,null,"BRENNUS SEVEN","J,M BAZIRE",{"$f":"ROWS($1:125)","v":125}]
[null,null,"CALASKA DE GUEZ","J,M BAZIRE",{"$f":"ROWS($1:126)","v":126}]
[null,null,"CANISSE DE GUEZ ","J,M BAZIRE",{"$f":"ROWS($1:127)","v":127}]
[null,null,"CARLA LOVE","J,M BAZIRE",{"$f":"ROWS($1:128)","v":128}]
[null,null,"CEDEA JOSSELYN","J,M BAZIRE",{"$f":"ROWS($1:129)","v":129}]
[null,null,"CHAMARA DE GUEZ ","J,M BAZIRE",{"$f":"ROWS($1:130)","v":130}]
[null,null,"CHOCO DE GUEZ ","J,M BAZIRE",{"$f":"ROWS($1:131)","v":131}]
[null,null,"COLONEL ","J,M BAZIRE",{"$f":"ROWS($1:132)","v":132}]
[null,null,"COVA JOSSELYN","J,M BAZIRE",{"$f":"ROWS($1:133)","v":133}]
[null,null,"COYOTE DE GUEZ ","J,M BAZIRE",{"$f":"ROWS($1:134)","v":134}]
[null,null,"CROKS DE GUEZ","J,M BAZIRE",{"$f":"ROWS($1:135)","v":135}]
[null,null,"DALOA JOSSELYN","J,M BAZIRE",{"$f":"ROWS($1:136)","v":136}]
[null,null,"DARLING BERRY","J,M BAZIRE",{"$f":"ROWS($1:137)","v":137}]
[null,null,"DAYANA BERRY","J,M BAZIRE",{"$f":"ROWS($1:138)","v":138}]
[null,null,"DELINDA","J,M BAZIRE",{"$f":"ROWS($1:139)","v":139}]
[null,null,"DESIR PARTAGE","J,M BAZIRE",{"$f":"ROWS($1:140)","v":140}]
[null,null,"DHARMANGA","J,M BAZIRE",{"$f":"ROWS($1:141)","v":141}]
[null,null,"DIVINE SEVEN","J,M BAZIRE",{"$f":"ROWS($1:142)","v":142}]
[null,null,"DORGAOS DE GUEZ","J,M BAZIRE",{"$f":"ROWS($1:143)","v":143}]
[null,null,"DOSTOIEVSKI","J,M BAZIRE",{"$f":"ROWS($1:144)","v":144}]
[null,null,"DOUXOR DE GUEZ ","J,M BAZIRE",{"$f":"ROWS($1:145)","v":145}]
[null,null,"DREAM CASH","J,M BAZIRE",{"$f":"ROWS($1:146)","v":146}]
[null,null,"DREAM STAR ","J,M BAZIRE",{"$f":"ROWS($1:147)","v":147}]
[null,null,"EIFFEL TOWER","J,M BAZIRE",{"$f":"ROWS($1:148)","v":148}]
[null,null,"EMPIRE STATE ","J,M BAZIRE",{"$f":"ROWS($1:149)","v":149}]
[null,null,"ESPOIR DE TOUES","J,M BAZIRE",{"$f":"ROWS($1:150)","v":150}]
[null,null,"EXCITING LADY","J,M BAZIRE",{"$f":"ROWS($1:151)","v":151}]
[null,null,"EZIO JOSSELYN","J,M BAZIRE",{"$f":"ROWS($1:152)","v":152}]
[null,null,"TORNADE DU DIGEON","J,M BAZIRE",{"$f":"ROWS($1:153)","v":153}]
[null,null,"UN FIRST ","J,M BAZIRE",{"$f":"ROWS($1:154)","v":154}]
[null,null,"UNICE DE GUEZ","J,M BAZIRE",{"$f":"ROWS($1:155)","v":155}]
[null,null,"VAGABOND D'ECHAL","J,M BAZIRE",{"$f":"ROWS($1:156)","v":156}]
[null,null,"VAL ROYAL","J,M BAZIRE",{"$f":"ROWS($1:157)","v":157}]
[null,null,"BAZAKI SEVEN","JM BAUDOIN ",{"$f":"ROWS($1:158)","v":158}]
[null,null,"BEST OF JETS","JM BAUDOIN ",{"$f":"ROWS($1:159)","v":159}]
[null,null,"CARLO DE CARSI","JM BAUDOIN ",{"$f":"ROWS($1:160)","v":160}]
[null,null,"CHORISTE","JM BAUDOIN ",{"$f":"ROWS($1:161)","v":161}]
[null,null,"DESTINATION RIO ","JM BAUDOIN ",{"$f":"ROWS($1:162)","v":162}]
[null,null,"DIVA CHARENTAISE","JM BAUDOIN ",{"$f":"ROWS($1:163)","v":163}]
[null,null,"DOCSPEL SEVEN","JM BAUDOIN ",{"$f":"ROWS($1:164)","v":164}]
[null,null,"DRYADE DE CHENU","JM BAUDOIN ",{"$f":"ROWS($1:165)","v":165}]
[null,null,"EPATANTE STAR","JM BAUDOIN ",{"$f":"ROWS($1:166)","v":166}]
[null,null,"ADRIENNE DU CITRUS","L.ABRIVARD",{"$f":"ROWS($1:167)","v":167}]
[null,null,"AZALEE DE BOMO","L.ABRIVARD",{"$f":"ROWS($1:168)","v":168}]
[null,null,"BAHAMAS","L.ABRIVARD",{"$f":"ROWS($1:169)","v":169}]
[null,null,"BARACK","L.ABRIVARD",{"$f":"ROWS($1:170)","v":170}]
[null,null,"BARI","L.ABRIVARD",{"$f":"ROWS($1:171)","v":171}]
[null,null,"BEL URZY","L.ABRIVARD",{"$f":"ROWS($1:172)","v":172}]
[null,null,"BILIBILI","L.ABRIVARD",{"$f":"ROWS($1:173)","v":173}]
[null,null,"BOLIDO BELLO","L.ABRIVARD",{"$f":"ROWS($1:174)","v":174}]
[null,null,"CAMPO JOSSELYN","L.ABRIVARD",{"$f":"ROWS($1:175)","v":175}]
[null,null,"CARAVELLE","L.ABRIVARD",{"$f":"ROWS($1:176)","v":176}]
[null,null,"CARIOCA DE LOU","L.ABRIVARD",{"$f":"ROWS($1:177)","v":177}]
[null,null,"CHANCELIERE CITRUS","L.ABRIVARD",{"$f":"ROWS($1:178)","v":178}]
[null,null,"CHERIE MY LOVE","L.ABRIVARD",{"$f":"ROWS($1:179)","v":179}]
[null,null,"COCKTAIL MY LOVE","L.ABRIVARD",{"$f":"ROWS($1:180)","v":180}]
[null,null,"COCKTAIL WINNER","L.ABRIVARD",{"$f":"ROWS($1:181)","v":181}]
[null,null,"COCONUT CITRUS","L.ABRIVARD",{"$f":"ROWS($1:182)","v":182}]
[null,null,"CORAL SEA","L.ABRIVARD",{"$f":"ROWS($1:183)","v":183}]
[null,null,"COUDRAS DE BELLOUET ","L.ABRIVARD",{"$f":"ROWS($1:184)","v":184}]
[null,null,"DAIDA DE VANDEL","L.ABRIVARD",{"$f":"ROWS($1:185)","v":185}]
[null,null,"DALABAMA","L.ABRIVARD",{"$f":"ROWS($1:186)","v":186}]
[null,null,"DAME DE BELLOUET ","L.ABRIVARD",{"$f":"ROWS($1:187)","v":187}]
[null,null,"DEDICATE OF CITRUS","L.ABRIVARD",{"$f":"ROWS($1:188)","v":188}]
[null,null,"DEL PERO DE LOU","L.ABRIVARD",{"$f":"ROWS($1:189)","v":189}]
[null,null,"DERBY WINNER","L.ABRIVARD",{"$f":"ROWS($1:190)","v":190}]
[null,null,"DEVISE DU VIVIER","L.ABRIVARD",{"$f":"ROWS($1:191)","v":191}]
[null,null,"DJANGO WINNER","L.ABRIVARD",{"$f":"ROWS($1:192)","v":192}]
[null,null,"DOLLY BIRD","L.ABRIVARD",{"$f":"ROWS($1:193)","v":193}]
[null,null,"DRAGON DES RACQUES ","L.ABRIVARD",{"$f":"ROWS($1:194)","v":194}]
[null,null,"DRAGON DU FRESNES","L.ABRIVARD",{"$f":"ROWS($1:195)","v":195}]
[null,null,"DRAKKAR DELO","L.ABRIVARD",{"$f":"ROWS($1:196)","v":196}]
[null,null,"DREAM DES WARRANS","L.ABRIVARD",{"$f":"ROWS($1:197)","v":197}]
[null,null,"DURZIE","L.ABRIVARD",{"$f":"ROWS($1:198)","v":198}]
[null,null,"DZEUS D'AVIGNERE","L.ABRIVARD",{"$f":"ROWS($1:199)","v":199}]
[null,null,"ELOVIA BELLA","L.ABRIVARD",{"$f":"ROWS($1:200)","v":200}]
[null,null,"EXCELLENT","L.ABRIVARD",{"$f":"ROWS($1:201)","v":201}]
[null,null,"AULYNX DIANY","M ABRIVARD",{"$f":"ROWS($1:202)","v":202}]
[null,null,"BELLISSIMAFRANCE","M ABRIVARD",{"$f":"ROWS($1:203)","v":203}]
[null,null,"BIRGIT MENUET ","M ABRIVARD",{"$f":"ROWS($1:204)","v":204}]
[null,null,"CALY LOULOU","M ABRIVARD",{"$f":"ROWS($1:205)","v":205}]
[null,null,"CLARA SAUTONNE","M ABRIVARD",{"$f":"ROWS($1:206)","v":206}]
[null,null,"DIEGO SQAUTONNE","M ABRIVARD",{"$f":"ROWS($1:207)","v":207}]
[null,null,"DISCOVA","M ABRIVARD",{"$f":"ROWS($1:208)","v":208}]
[null,null,"ELECTRO BAR ","M ABRIVARD",{"$f":"ROWS($1:209)","v":209}]
[null,null,"AGRIPPA MESLOISE","P,BELLOCHE",{"$f":"ROWS($1:210)","v":210}]
[null,null,"ANGE DU PALAIS","P,BELLOCHE",{"$f":"ROWS($1:211)","v":211}]
[null,null,"BARAKA MAJYC","P,BELLOCHE",{"$f":"ROWS($1:212)","v":212}]
[null,null,"BE BOP MESLOIS","P,BELLOCHE",{"$f":"ROWS($1:213)","v":213}]
[null,null,"BEGUION MESLOIS","P,BELLOCHE",{"$f":"ROWS($1:214)","v":214}]
[null,null,"BREEDER'S CUP","P,BELLOCHE",{"$f":"ROWS($1:215)","v":215}]
[null,null,"CLICHE MESLOIS","P,BELLOCHE",{"$f":"ROWS($1:216)","v":216}]
[null,null,"COKTAIL MESLOIS","P,BELLOCHE",{"$f":"ROWS($1:217)","v":217}]
[null,null,"COURAGEUSE","P,BELLOCHE",{"$f":"ROWS($1:218)","v":218}]
[null,null,"DARD ROC","P,BELLOCHE",{"$f":"ROWS($1:219)","v":219}]
[null,null,"DIVINE MESLOISE","P,BELLOCHE",{"$f":"ROWS($1:220)","v":220}]
[null,null,"ENVIE MESLOISE","P,BELLOCHE",{"$f":"ROWS($1:221)","v":221}]
[null,null,"ENZIO MESLOIS","P,BELLOCHE",{"$f":"ROWS($1:222)","v":222}]
[null,null,"BANJO DE LA NOEMIE","PH.BOUTIN",{"$f":"ROWS($1:223)","v":223}]
[null,null,"CHARMANT FIERTE","PH.BOUTIN",{"$f":"ROWS($1:224)","v":224}]
[null,null,"VENDEEN","PH.BOUTIN",{"$f":"ROWS($1:225)","v":225}]
[null,null,"VISA DE LA NOEMIE","PH.BOUTIN",{"$f":"ROWS($1:226)","v":226}]
[null,null,"BRISE DE L'ALBA","W,BIGEON",{"$f":"ROWS($1:227)","v":227}]
[null,null,"CAPITAINE France","W,BIGEON",{"$f":"ROWS($1:228)","v":228}]
[null,null,"DIABLO DU NOYER","W,BIGEON",{"$f":"ROWS($1:229)","v":229}]
[null,null,"ELEA MADRIK","W,BIGEON",{"$f":"ROWS($1:230)","v":230}]
[null,null,"EMBLEME DE CORDAY","W,BIGEON",{"$f":"ROWS($1:231)","v":231}]
[null,null,"AGLAE PIERJI","Y.A BRIAND",{"$f":"ROWS($1:232)","v":232}]
[null,null,"ALL STAR IS MINE ","Y.A BRIAND",{"$f":"ROWS($1:233)","v":233}]
[null,null,"AMI","Y.A BRIAND",{"$f":"ROWS($1:234)","v":234}]
[null,null,"AREZZO VICI","Y.A BRIAND",{"$f":"ROWS($1:235)","v":235}]
[null,null,"AZUR DES GESVRES","Y.A BRIAND",{"$f":"ROWS($1:236)","v":236}]
[null,null,"BAYERN","Y.A BRIAND",{"$f":"ROWS($1:237)","v":237}]
[null,null,"BELEBRINE","Y.A BRIAND",{"$f":"ROWS($1:238)","v":238}]
[null,null,"BLACK DU BOCAGE","Y.A BRIAND",{"$f":"ROWS($1:239)","v":239}]
[null,null,"BLAISE DU VIVIER","Y.A BRIAND",{"$f":"ROWS($1:240)","v":240}]
[null,null,"BLUE ISLAND","Y.A BRIAND",{"$f":"ROWS($1:241)","v":241}]
[null,null,"BOSS DU MELEUC","Y.A BRIAND",{"$f":"ROWS($1:242)","v":242}]
[null,null,"CASTENANGO","Y.A BRIAND",{"$f":"ROWS($1:243)","v":243}]
[null,null,"CELEBRE  DU RABUTIN","Y.A BRIAND",{"$f":"ROWS($1:244)","v":244}]
[null,null,"CHARMEUR DE BREVOL","Y.A BRIAND",{"$f":"ROWS($1:245)","v":245}]
[null,null,"CHEIKH DE RETZ","Y.A BRIAND",{"$f":"ROWS($1:246)","v":246}]
[null,null,"CHRISTINA ","Y.A BRIAND",{"$f":"ROWS($1:247)","v":247}]
[null,null,"CONNECTICUT","Y.A BRIAND",{"$f":"ROWS($1:248)","v":248}]
[null,null,"CORNFLOWER JAC","Y.A BRIAND",{"$f":"ROWS($1:249)","v":249}]
[null,null,"COULEUR DE STAR","Y.A BRIAND",{"$f":"ROWS($1:250)","v":250}]
[null,null,"CYPRIN D'ERABLE","Y.A BRIAND",{"$f":"ROWS($1:251)","v":251}]
[null,null,"CYRANO DU CHATELET","Y.A BRIAND",{"$f":"ROWS($1:252)","v":252}]
[null,null,"DALTON D'EBANE","Y.A BRIAND",{"$f":"ROWS($1:253)","v":253}]
[null,null,"DANDY WIXY","Y.A BRIAND",{"$f":"ROWS($1:254)","v":254}]
[null,null,"DAXIA PIERJI","Y.A BRIAND",{"$f":"ROWS($1:255)","v":255}]
[null,null,"DEFI YHE BEST ","Y.A BRIAND",{"$f":"ROWS($1:256)","v":256}]
[null,null,"DENVER DU CHATELET","Y.A BRIAND",{"$f":"ROWS($1:257)","v":257}]
[null,null,"DIEGO DE BANVILLE ","Y.A BRIAND",{"$f":"ROWS($1:258)","v":258}]
[null,null,"DIS MOI TOUT","Y.A BRIAND",{"$f":"ROWS($1:259)","v":259}]
[null,null,"DIVINE WEAPON","Y.A BRIAND",{"$f":"ROWS($1:260)","v":260}]
[null,null,"DURGA DES VALERINS","Y.A BRIAND",{"$f":"ROWS($1:261)","v":261}]
[null,null,"EDEN","Y.A BRIAND",{"$f":"ROWS($1:262)","v":262}]
[null,null,"EGO TURGOT","Y.A BRIAND",{"$f":"ROWS($1:263)","v":263}]
[null,null,"ELTON STAR","Y.A BRIAND",{"$f":"ROWS($1:264)","v":264}]
[null,null,"TOPAZE  JEF","JM BAUDOIN ",{"$f":"ROWS($1:265)","v":265}]

{"sheet":"TCD","index":1,"n_rows":52,"n_cols":9,"rows_kept":52,"cut":false,"hidden":false,"merged":[]}
[null," Entraineur","JM BAUDOIN ","<<< Choisir"]
[]
[null,"Cheval","N°"]
[null,"BAZAKI SEVEN",43]
[null,"BEST OF JETS",61]
[null,"CARLO DE CARSI",100]
[null,"CHORISTE",123,null,null,null,"Nom du cheval",null,"<<< Choisir"]
[null,"DESTINATION RIO ",174,null,null,null,"Nom de l'Entraineur",{"$f":"IFERROR(VLOOKUP(H7,Tableau1[],2,0),\"\")","v":""}]
[null,"DIVA CHARENTAISE",189,null,null,null,"Numéro",{"$f":"IFERROR(VLOOKUP(H7,Tableau1[],3,0),\"\")","v":""}]
[null,"DOCSPEL SEVEN",194]
[null,"DRYADE DE CHENU",213]
[null,"EPATANTE STAR",234]
[null,null,null,null,"Bonjour,"]
[]
[null,null,null,null,"Voila ce qu'un ami m' a fait suite à ma demande"]
[]
[null,null,null,null,"mais j'y vois deux problémes"]
[]
[null,null,null,null,"sur ma gauche ma liste ne fait que 264 lignes ce jour mais dans les 48 heures elle devrait atteindre 1500 a 2000 lignes, "]
[null,null,null,null,"alors que si j'en ajoute une et que je clique dans la liste entraineur"]
[null,null,null,null,"je viens d'en rajouter un en 265 "]
[null,null,null,null,"TOPAZE  JEF","JM BAUDOIN ",265]
[]
[null,null,null,null,"et il n'apparait pas sur la liste, comme je ne connais pas grand-chose veillez au moins me dire comment je peux faire pour changer "]
[null,null,null,null,"cet état de fait"]
[null,null,null,null,"Je crois savoir que les TCD n'accepte pas les lignes vides, mais je voudrais pourvoir faire des rajouts qyand j'en ai besoin , ce qui est le cas"]
[null,null,null,null,"j'ai une liste d'environ 2000 noms en tout que je rentre un peu tous les jours , nil faut donc prevoir disons 3000 lignes voire 5000 et la nous serions tranquille (si c'est possible"]
[]
[]
[]
[null,null,null,null,"ci-dessus,"]
[]
[null,null,null,null,"ce dont j'aurais besoin ce  n'est une liste déroulante (comme a eu la gentillesse de faire JLCD) , mais un saisie de ma part qui effectuerais "]
[null,null,null,null,"une recherche dans l'onglet \"liste\""]
[null,null,null,null,"fans la cas ou  le repprochement trouve la donnée correspondante ,  on affiche : le nom du cheval, le nom de l'entraineur et son n°"]
[null,null,null,null,"dans le cas ou le rapprochement ne trouve pas la donnée correpondante, alors on met la cellule a blanc "]
[]
[null,null,null,null,"je saisis AREZZO VICI"," ","Nom du cheval","AREZZO VICI"]
[null,null,null,null,"IL TROUVE ","IL REPOND","Nom de l'Entraineur",{"$f":"VLOOKUP(H38,Tableau1[],2,0)","v":"Y.A BRIAND"}]
[null,null,null,null,null,null,"Numéro",235]
[]
[null,null,null,null,"je saisis TONTON GASTON ",null,"Nom du cheval"]
[null,null,null,null,"IL TROUVE PAS ",null,"Nom de l'Entraineur",null,"ou alors faire un renvoi vers la prmière ligne vide de la \"list\" pour créer une nouvelle ligbe avec ce cheavl"]
[null,null,null,null,"IL REPOND ",null,"Numéro"]
[]
[null,null,null,null,"en fait même si c'était possible d'avoir un modile de saisie pour rempli ma liste "]
[null,null,null,null,"qui soit un peu comme cela"]
[]
[null,null,null," ","Nom du cheval"]
[null,null,null,null,"Nom de l'Entraineur",null,"VALIDER"]
[]
[null,null,null,null,"ainsi cela créerait une ligne dans \"liste\" qui prendrait le numéros suivant"]